[Event "*** Titled Tuesday Blitz"]
[Site "Chess.com"]
[Date "2019.09.03"]
[Round "4"]
[White "mitrabhaa"]
[Black "Walter_White_Poland"]
[Result "1-0"]
[WhiteElo "2651"]
[BlackElo "2323"]
[TimeControl "180+2"]
[EndTime "15:53:44 PDT"]
[Termination "mitrabhaa won on time"]

1. Nf3 {[%clk 0:03:01.9]} 1... c5 {[%clk 0:02:54.7]} 2. g3 {[%clk 0:03:00.2]}
2... Nc6 {[%clk 0:02:54.9]} 3. Bg2 {[%clk 0:02:59]} 3... e5 {[%clk 0:02:54.6]}
4. d3 {[%clk 0:03:00.1]} 4... g6 {[%clk 0:02:55.6]} 5. c4 {[%clk 0:02:59.2]}
5... Bg7 {[%clk 0:02:56.5]} 6. Nc3 {[%clk 0:03:00.1]} 6... f5 {[%clk 0:02:42.3]}
7. a3 {[%clk 0:02:57.9]} 7... Nf6 {[%clk 0:02:42.7]} 8. b4 {[%clk 0:02:58.9]}
8... d6 {[%clk 0:02:42.5]} 9. O-O {[%clk 0:02:54.1]} 9... O-O {[%clk 0:02:41.2]}
10. Bb2 {[%clk 0:02:54.9]} 10... Rb8 {[%clk 0:02:37.8]} 11. Nd2 {[%clk 0:02:55]}
11... Bd7 {[%clk 0:02:31.7]} 12. bxc5 {[%clk 0:02:45.6]} 12... dxc5 {[%clk
0:02:31.9]} 13. Nd5 {[%clk 0:02:46.3]} 13... Be6 {[%clk 0:02:18]} 14. e4 {[%clk
0:02:38.5]} 14... Nd4 {[%clk 0:02:10]} 15. Bxd4 {[%clk 0:02:30]} 15... cxd4
{[%clk 0:02:02.4]} 16. Qb3 {[%clk 0:02:23.5]} 16... f4 {[%clk 0:01:57]} 17. Rfb1
{[%clk 0:02:15.4]} 17... fxg3 {[%clk 0:01:51.9]} 18. hxg3 {[%clk 0:02:13.3]}
18... Ng4 {[%clk 0:01:51.6]} 19. Nf3 {[%clk 0:01:59.5]} 19... Kh8 {[%clk
0:01:43.4]} 20. Rb2 {[%clk 0:01:54.5]} 20... Rf7 {[%clk 0:01:28]} 21. Rf1 {[%clk
0:01:39]} 21... Bh6 {[%clk 0:01:11.2]} 22. Nh2 {[%clk 0:01:32.4]} 22... Nxh2
{[%clk 0:00:59.3]} 23. Kxh2 {[%clk 0:01:33]} 23... Qg5 {[%clk 0:00:55.1]} 24.
Qa4 {[%clk 0:01:27]} 24... a6 {[%clk 0:00:49.1]} 25. Qa5 {[%clk 0:01:17.7]}
25... Rbf8 {[%clk 0:00:45.7]} 26. Kg1 {[%clk 0:01:12.1]} 26... Qh5 {[%clk
0:00:33.4]} 27. Nb6 {[%clk 0:00:29]} 27... Bg4 {[%clk 0:00:31.4]} 28. f4 {[%clk
0:00:21.5]} 28... exf4 {[%clk 0:00:26.3]} 29. Qxh5 {[%clk 0:00:22.8]} 29... Bxh5
{[%clk 0:00:24.6]} 30. gxf4 {[%clk 0:00:24.2]} 30... Bxf4 {[%clk 0:00:24.1]} 31.
Nd5 {[%clk 0:00:25.5]} 31... Be3+ {[%clk 0:00:22.5]} 32. Nxe3 {[%clk 0:00:25.2]}
32... dxe3 {[%clk 0:00:22.6]} 33. Rxf7 {[%clk 0:00:24.4]} 33... Rxf7 {[%clk
0:00:23.1]} 34. d4 {[%clk 0:00:25.9]} 34... Rd7 {[%clk 0:00:12.8]} 35. d5 {[%clk
0:00:21.2]} 35... e2 {[%clk 0:00:09.9]} 36. Kf2 {[%clk 0:00:21.5]} 36... Rc7
{[%clk 0:00:10.5]} 37. e5 {[%clk 0:00:22.8]} 37... Rxc4 {[%clk 0:00:10.8]} 38.
Rb1 {[%clk 0:00:23.5]} 38... Rf4+ {[%clk 0:00:10.9]} 39. Ke1 {[%clk 0:00:24.7]}
39... Kg7 {[%clk 0:00:11]} 40. Rxb7+ {[%clk 0:00:25.1]} 40... Kh6 {[%clk
0:00:10.4]} 41. Rb2 {[%clk 0:00:19.4]} 41... Rd4 {[%clk 0:00:08.7]} 42. Rd2
{[%clk 0:00:20]} 42... Rc4 {[%clk 0:00:08.1]} 43. Rxe2 {[%clk 0:00:18.9]} 43...
Bxe2 {[%clk 0:00:08.1]} 44. Kxe2 {[%clk 0:00:20.8]} 44... Kg7 {[%clk 0:00:07.5]}
45. d6 {[%clk 0:00:20.8]} 45... Kf8 {[%clk 0:00:08.4]} 46. e6 {[%clk 0:00:21.5]}
46... Rd4 {[%clk 0:00:08.3]} 47. e7+ {[%clk 0:00:22.7]} 47... Kf7 {[%clk
0:00:08.1]} 48. Bc6 {[%clk 0:00:24.3]} 1-0

[Event "*** Titled Tuesday Blitz"]
[Site "Chess.com"]
[Date "2019.09.03"]
[Round "4"]
[White "Korchmar_Vasiliy"]
[Black "nurgyulsalimova"]
[Result "0-1"]
[WhiteElo "2688"]
[BlackElo "2532"]
[TimeControl "180+2"]
[EndTime "15:53:45 PDT"]
[Termination "nurgyulsalimova won by checkmate"]

1. d4 {[%clk 0:03:01.5]} 1... Nf6 {[%clk 0:03:00.8]} 2. c4 {[%clk 0:03:02.4]}
2... g6 {[%clk 0:02:58.7]} 3. Nc3 {[%clk 0:03:03.7]} 3... d5 {[%clk 0:02:59.5]}
4. Nf3 {[%clk 0:03:04.8]} 4... Bg7 {[%clk 0:02:58.3]} 5. Bf4 {[%clk 0:03:06]}
5... O-O {[%clk 0:02:34.9]} 6. e3 {[%clk 0:03:07.1]} 6... c5 {[%clk 0:02:35.7]}
7. dxc5 {[%clk 0:03:08.2]} 7... Qa5 {[%clk 0:02:35.6]} 8. Rc1 {[%clk 0:03:08.8]}
8... Ne4 {[%clk 0:02:27.2]} 9. Be5 {[%clk 0:03:00.5]} 9... Bxe5 {[%clk
0:02:09.5]} 10. Nxe5 {[%clk 0:03:02.4]} 10... Rd8 {[%clk 0:01:35.5]} 11. cxd5
{[%clk 0:02:54.4]} 11... Be6 {[%clk 0:01:15.7]} 12. Bc4 {[%clk 0:02:44.5]} 12...
Nc6 {[%clk 0:00:44.7]} 13. Nxc6 {[%clk 0:02:07.2]} 13... bxc6 {[%clk 0:00:42.9]}
14. O-O {[%clk 0:02:08.3]} 14... cxd5 {[%clk 0:00:27.3]} 15. Nxe4 {[%clk
0:01:44.6]} 15... dxe4 {[%clk 0:00:25.4]} 16. Qe2 {[%clk 0:01:35.9]} 16... Rd2
{[%clk 0:00:24]} 17. Qe1 {[%clk 0:01:33.4]} 17... Bxc4 {[%clk 0:00:22]} 18. Rxc4
{[%clk 0:01:35.3]} 18... Rad8 {[%clk 0:00:23.4]} 19. c6 {[%clk 0:01:32.7]} 19...
Qxa2 {[%clk 0:00:23.4]} 20. c7 {[%clk 0:01:33.1]} 20... Qxc4 {[%clk 0:00:23.6]}
21. cxd8=Q+ {[%clk 0:01:27.7]} 21... Rxd8 {[%clk 0:00:25.5]} 22. Qa5 {[%clk
0:01:28.9]} 22... Rd7 {[%clk 0:00:17]} 23. Qe5 {[%clk 0:01:28.9]} 23... Qd5
{[%clk 0:00:15.7]} 24. Qc3 {[%clk 0:01:28.9]} 24... Qd3 {[%clk 0:00:15.9]} 25.
Qe5 {[%clk 0:01:29.2]} 25... Qd5 {[%clk 0:00:16.4]} 26. Qf4 {[%clk 0:01:30.2]}
26... e5 {[%clk 0:00:12.4]} 27. Qf6 {[%clk 0:01:30.4]} 27... Qd6 {[%clk
0:00:09.4]} 28. Qh4 {[%clk 0:01:31.5]} 28... Qb4 {[%clk 0:00:08.3]} 29. Qg4
{[%clk 0:01:29.5]} 29... f5 {[%clk 0:00:09.2]} 30. Qg5 {[%clk 0:01:29]} 30...
Qxb2 {[%clk 0:00:10.3]} 31. h4 {[%clk 0:01:27.8]} 31... Qe2 {[%clk 0:00:08.9]}
32. Qf6 {[%clk 0:01:19.2]} 32... Rd1 {[%clk 0:00:08.5]} 33. Qe6+ {[%clk
0:01:20.2]} 33... Kf8 {[%clk 0:00:07]} 34. Qf6+ {[%clk 0:01:19.1]} 34... Kg8
{[%clk 0:00:08]} 35. Qe6+ {[%clk 0:01:20.7]} 35... Kf8 {[%clk 0:00:09.3]} 36.
Qc8+ {[%clk 0:01:21.7]} 36... Kg7 {[%clk 0:00:08.8]} 37. Rxd1 {[%clk 0:01:14.9]}
37... Qxd1+ {[%clk 0:00:10.7]} 38. Kh2 {[%clk 0:01:16.8]} 38... Qg4 {[%clk
0:00:10.8]} 39. Qd8 {[%clk 0:01:12.8]} 39... f4 {[%clk 0:00:07.6]} 40. Qe7+
{[%clk 0:01:11.8]} 40... Kh6 {[%clk 0:00:09.1]} 41. Qf8+ {[%clk 0:00:55.3]}
41... Kh5 {[%clk 0:00:09.9]} 42. Qg7 {[%clk 0:00:57.2]} 42... Qxh4+ {[%clk
0:00:10.8]} 43. Kg1 {[%clk 0:00:57.7]} 43... Qg5 {[%clk 0:00:07.5]} 44. Qxh7+
{[%clk 0:00:55.4]} 44... Qh6 {[%clk 0:00:09]} 45. Qe7 {[%clk 0:00:56.1]} 45...
Qg5 {[%clk 0:00:09.2]} 46. Qh7+ {[%clk 0:00:56.6]} 46... Qh6 {[%clk 0:00:10.5]}
47. Qc7 {[%clk 0:00:57.6]} 47... fxe3 {[%clk 0:00:08.7]} 48. Qxe5+ {[%clk
0:00:58]} 48... Qg5 {[%clk 0:00:06.5]} 49. Qh8+ {[%clk 0:00:48.7]} 49... Qh6
{[%clk 0:00:06.8]} 50. g4+ {[%clk 0:00:42.2]} 50... Kg5 {[%clk 0:00:06.2]} 51.
f4+ {[%clk 0:00:43.1]} 51... exf3 {[%clk 0:00:05.2]} 52. Qe5+ {[%clk 0:00:33.4]}
52... Kxg4 {[%clk 0:00:05.8]} 53. Qe4+ {[%clk 0:00:34.4]} 53... Qf4 {[%clk
0:00:04.7]} 54. Qxg6+ {[%clk 0:00:35]} 54... Qg5 {[%clk 0:00:06]} 55. Qe4+
{[%clk 0:00:31.8]} 55... Kh3+ {[%clk 0:00:07.1]} 56. Kf1 {[%clk 0:00:32.3]}
56... Qg2+ {[%clk 0:00:08]} 57. Ke1 {[%clk 0:00:33.9]} 57... Qe2# {[%clk
0:00:09.3]} 0-1

[Event "*** Titled Tuesday Blitz"]
[Site "Chess.com"]
[Date "2019.09.03"]
[Round "4"]
[White "Induwara_IM"]
[Black "ferdipy"]
[Result "1-0"]
[WhiteElo "2392"]
[BlackElo "2150"]
[TimeControl "180+2"]
[EndTime "15:53:48 PDT"]
[Termination "Induwara_IM won on time"]

1. d4 {[%clk 0:03:01.9]} 1... Nf6 {[%clk 0:03:00.3]} 2. c4 {[%clk 0:03:02.8]}
2... e6 {[%clk 0:03:00.7]} 3. Nf3 {[%clk 0:03:01.6]} 3... Bb4+ {[%clk
0:03:01.6]} 4. Nbd2 {[%clk 0:03:01.9]} 4... d5 {[%clk 0:02:59.1]} 5. e3 {[%clk
0:03:01.2]} 5... O-O {[%clk 0:02:59.7]} 6. a3 {[%clk 0:02:57.2]} 6... Be7 {[%clk
0:03:00.5]} 7. Bd3 {[%clk 0:02:57.8]} 7... dxc4 {[%clk 0:03:00.1]} 8. Nxc4
{[%clk 0:02:58.5]} 8... c5 {[%clk 0:03:01.7]} 9. dxc5 {[%clk 0:02:59.7]} 9...
Bxc5 {[%clk 0:03:02.1]} 10. b4 {[%clk 0:03:00.7]} 10... Be7 {[%clk 0:03:02.4]}
11. Bb2 {[%clk 0:03:01.9]} 11... b6 {[%clk 0:03:02.7]} 12. e4 {[%clk 0:02:56]}
12... Bb7 {[%clk 0:03:03.2]} 13. e5 {[%clk 0:02:57.5]} 13... Nd5 {[%clk
0:02:52.8]} 14. Be4 {[%clk 0:02:52.4]} 14... Nd7 {[%clk 0:02:34.5]} 15. O-O
{[%clk 0:02:51.3]} 15... Rc8 {[%clk 0:02:09.3]} 16. Rc1 {[%clk 0:02:47.5]} 16...
b5 {[%clk 0:01:56.7]} 17. Nd6 {[%clk 0:02:42.1]} 17... Bxd6 {[%clk 0:01:57.3]}
18. Rxc8 {[%clk 0:02:36.6]} 18... Bxc8 {[%clk 0:01:47.9]} 19. exd6 {[%clk
0:02:37.4]} 19... N7f6 {[%clk 0:01:35.9]} 20. Bxd5 {[%clk 0:02:30.1]} 20... Nxd5
{[%clk 0:01:33.7]} 21. Qd4 {[%clk 0:02:29]} 21... f6 {[%clk 0:01:31.1]} 22. Qc5
{[%clk 0:02:20.3]} 22... Qb6 {[%clk 0:01:14.1]} 23. Nd4 {[%clk 0:02:18.3]} 23...
a6 {[%clk 0:01:08.7]} 24. Re1 {[%clk 0:02:16.1]} 24... Kf7 {[%clk 0:01:07.1]}
25. Qc2 {[%clk 0:01:55.2]} 25... g6 {[%clk 0:00:47.4]} 26. Qc5 {[%clk 0:01:32]}
26... Rd8 {[%clk 0:00:42.8]} 27. Nc6 {[%clk 0:01:31]} 27... Rd7 {[%clk
0:00:28.3]} 28. Bd4 {[%clk 0:01:31.6]} 28... Qxc5 {[%clk 0:00:24.6]} 29. bxc5
{[%clk 0:01:31.8]} 29... e5 {[%clk 0:00:24.5]} 30. Bb2 {[%clk 0:01:13.3]} 30...
Ke6 {[%clk 0:00:16.7]} 31. Nd4+ {[%clk 0:01:04.2]} 31... Kf7 {[%clk 0:00:16.6]}
32. Nb3 {[%clk 0:01:02.6]} 32... Nf4 {[%clk 0:00:17]} 33. Rd1 {[%clk 0:01:00.8]}
33... Bb7 {[%clk 0:00:15.4]} 34. g3 {[%clk 0:00:58.4]} 34... Nh3+ {[%clk
0:00:13.6]} 35. Kf1 {[%clk 0:00:59.5]} 35... Ng5 {[%clk 0:00:07.2]} 36. Na5
{[%clk 0:01:00]} 36... Bf3 {[%clk 0:00:08.8]} 37. Rd3 {[%clk 0:00:58.3]} 37...
Ke6 {[%clk 0:00:09.6]} 38. h4 {[%clk 0:00:57.1]} 38... e4 {[%clk 0:00:10.2]} 39.
Rd2 {[%clk 0:00:44.9]} 39... Nf7 {[%clk 0:00:11.5]} 40. Nb3 {[%clk 0:00:41.4]}
40... Ne5 {[%clk 0:00:07.1]} 41. Bxe5 {[%clk 0:00:32.9]} 41... fxe5 {[%clk
0:00:07.9]} 42. Ke1 {[%clk 0:00:26]} 42... e3 {[%clk 0:00:06.5]} 43. fxe3 {[%clk
0:00:27]} 43... Bd5 {[%clk 0:00:07.8]} 44. Na5 {[%clk 0:00:26.3]} 44... Ba8
{[%clk 0:00:06.4]} 45. Rf2 {[%clk 0:00:20.3]} 45... h6 {[%clk 0:00:06.4]} 46.
Rf8 {[%clk 0:00:20.8]} 46... Be4 {[%clk 0:00:06.2]} 47. Rc8 {[%clk 0:00:20]}
47... Kd5 {[%clk 0:00:05.5]} 48. c6 {[%clk 0:00:19.2]} 48... Rxd6 {[%clk
0:00:05.4]} 49. c7 {[%clk 0:00:20.2]} 49... Bf5 {[%clk 0:00:05.4]} 50. Rd8
{[%clk 0:00:20.6]} 50... Kc5 {[%clk 0:00:03.6]} 51. Nb7+ {[%clk 0:00:21.2]}
51... Kc6 {[%clk 0:00:02.8]} 52. Nxd6 {[%clk 0:00:21.2]} 52... Kxc7 {[%clk
0:00:04.7]} 53. Nf7 {[%clk 0:00:22.3]} 1-0

[Event "*** Titled Tuesday Blitz"]
[Site "Chess.com"]
[Date "2019.09.03"]
[Round "4"]
[White "albi1999"]
[Black "Kimster98"]
[Result "1-0"]
[WhiteElo "2488"]
[BlackElo "2608"]
[TimeControl "180+2"]
[EndTime "15:53:50 PDT"]
[Termination "albi1999 won by resignation"]

1. d4 {[%clk 0:03:01.9]} 1... d5 {[%clk 0:03:00]} 2. c4 {[%clk 0:03:02.3]} 2...
e6 {[%clk 0:03:00.6]} 3. Nf3 {[%clk 0:03:03]} 3... Nf6 {[%clk 0:03:01.6]} 4. g3
{[%clk 0:03:03.9]} 4... Bb4+ {[%clk 0:03:02]} 5. Bd2 {[%clk 0:03:03.6]} 5... Be7
{[%clk 0:02:59.8]} 6. Bg2 {[%clk 0:03:03.2]} 6... O-O {[%clk 0:03:01.1]} 7. Qc2
{[%clk 0:03:04.2]} 7... c6 {[%clk 0:03:01.3]} 8. O-O {[%clk 0:03:05.6]} 8...
Nbd7 {[%clk 0:03:01.4]} 9. Rd1 {[%clk 0:03:06.9]} 9... b6 {[%clk 0:03:02.7]} 10.
b3 {[%clk 0:03:07.1]} 10... Ne4 {[%clk 0:03:01.6]} 11. Nc3 {[%clk 0:03:04.1]}
11... f5 {[%clk 0:02:58.8]} 12. Bc1 {[%clk 0:02:38.4]} 12... Bb7 {[%clk
0:02:58.4]} 13. Bb2 {[%clk 0:02:38.8]} 13... Bd6 {[%clk 0:02:58.1]} 14. e3
{[%clk 0:02:39.3]} 14... g5 {[%clk 0:02:52.1]} 15. Ne2 {[%clk 0:02:39.6]} 15...
Qf6 {[%clk 0:02:40.1]} 16. Ne1 {[%clk 0:02:31.3]} 16... Qh6 {[%clk 0:02:32.5]}
17. f3 {[%clk 0:02:29.2]} 17... Nef6 {[%clk 0:02:32.6]} 18. Nd3 {[%clk
0:02:29.8]} 18... g4 {[%clk 0:02:30]} 19. Nef4 {[%clk 0:02:29.5]} 19... gxf3
{[%clk 0:02:30.1]} 20. Bxf3 {[%clk 0:02:31.4]} 20... Ne4 {[%clk 0:02:28.9]} 21.
Qg2 {[%clk 0:02:26.6]} 21... Kh8 {[%clk 0:02:22.8]} 22. c5 {[%clk 0:02:27.1]}
22... Be7 {[%clk 0:02:21.3]} 23. b4 {[%clk 0:02:25.5]} 23... a5 {[%clk
0:02:05.2]} 24. a3 {[%clk 0:02:17.5]} 24... b5 {[%clk 0:02:02.5]} 25. Nf2 {[%clk
0:02:14.3]} 25... Ndf6 {[%clk 0:01:53]} 26. N2d3 {[%clk 0:02:08.7]} 26... Nd7
{[%clk 0:01:50.8]} 27. Nf2 {[%clk 0:02:00.3]} 27... Ng5 {[%clk 0:01:44.1]} 28.
Be2 {[%clk 0:01:56]} 28... a4 {[%clk 0:01:41.1]} 29. Bc3 {[%clk 0:01:54.9]}
29... Rg8 {[%clk 0:01:35.3]} 30. Kf1 {[%clk 0:01:55.9]} 30... Raf8 {[%clk
0:01:35.2]} 31. Ke1 {[%clk 0:01:56.9]} 31... Bc8 {[%clk 0:01:36.2]} 32. Kd2
{[%clk 0:01:57.6]} 32... Nf6 {[%clk 0:01:37.4]} 33. Bd3 {[%clk 0:01:53.6]} 33...
Bd7 {[%clk 0:01:19.1]} 34. Kc2 {[%clk 0:01:54.5]} 34... Ng4 {[%clk 0:01:11.8]}
35. Nxg4 {[%clk 0:01:49.2]} 35... fxg4 {[%clk 0:01:11.8]} 36. e4 {[%clk
0:01:50.7]} 36... Nf3 {[%clk 0:01:05]} 37. exd5 {[%clk 0:01:50.9]} 37... exd5
{[%clk 0:01:06.9]} 38. Re1 {[%clk 0:01:50.2]} 38... Bg5 {[%clk 0:01:06.7]} 39.
Re5 {[%clk 0:01:42]} 39... Bxf4 {[%clk 0:00:42.7]} 40. gxf4 {[%clk 0:01:43.9]}
40... Qxh2 {[%clk 0:00:43.9]} 41. Qxh2 {[%clk 0:01:42.2]} 41... Nxh2 {[%clk
0:00:45.8]} 42. Rh5 {[%clk 0:01:43.3]} 42... Rg7 {[%clk 0:00:41.1]} 43. Rxh2
{[%clk 0:01:44.2]} 43... Rxf4 {[%clk 0:00:42.4]} 44. Bd2 {[%clk 0:01:44]} 44...
Rf3 {[%clk 0:00:41.9]} 45. Be2 {[%clk 0:01:42.7]} 45... Rff7 {[%clk 0:00:39.1]}
46. Bh6 {[%clk 0:01:37.4]} 46... Rg6 {[%clk 0:00:38.7]} 47. Bd3 {[%clk
0:01:38.4]} 47... Bf5 {[%clk 0:00:36.7]} 48. Re1 {[%clk 0:01:35.1]} 48... Bxd3+
{[%clk 0:00:11.9]} 49. Kxd3 {[%clk 0:01:37]} 49... g3 {[%clk 0:00:12.8]} 50.
Re8+ {[%clk 0:01:35.4]} 50... Rg8 {[%clk 0:00:14]} 51. Rxg8+ {[%clk 0:01:35.4]}
51... Kxg8 {[%clk 0:00:15.1]} 52. Rg2 {[%clk 0:01:35.6]} 52... Rf3+ {[%clk
0:00:14.8]} 53. Be3 {[%clk 0:01:37]} 53... Kf7 {[%clk 0:00:14.1]} 54. Ke2 {[%clk
0:01:37.7]} 54... Rf6 {[%clk 0:00:15.5]} 55. Rxg3 {[%clk 0:01:38.7]} 55... h5
{[%clk 0:00:17.1]} 56. Rg5 {[%clk 0:01:36.6]} 56... h4 {[%clk 0:00:16.6]} 57.
Rh5 {[%clk 0:01:37.2]} 57... Rg6 {[%clk 0:00:18.1]} 58. Rxh4 {[%clk 0:01:37.1]}
58... Rg2+ {[%clk 0:00:19.6]} 59. Bf2 {[%clk 0:01:38.1]} 59... Rg6 {[%clk
0:00:20.3]} 60. Rh7+ {[%clk 0:01:35.8]} 60... Ke8 {[%clk 0:00:20.9]} 61. Kf3
{[%clk 0:01:34.8]} 61... Rf6+ {[%clk 0:00:21.6]} 62. Ke3 {[%clk 0:01:33.3]}
62... Re6+ {[%clk 0:00:22.6]} 63. Kd3 {[%clk 0:01:34.5]} 63... Rf6 {[%clk
0:00:22.9]} 64. Be3 {[%clk 0:01:35.7]} 64... Rg6 {[%clk 0:00:21.4]} 65. Bf4
{[%clk 0:01:36.2]} 65... Rf6 {[%clk 0:00:22.6]} 66. Ke3 {[%clk 0:01:36.6]} 66...
Re6+ {[%clk 0:00:23.8]} 67. Kf3 {[%clk 0:01:37.6]} 67... Kd8 {[%clk 0:00:23.4]}
68. Be5 {[%clk 0:01:37.5]} 68... Rg6 {[%clk 0:00:24.3]} 69. Bd6 {[%clk
0:01:35.2]} 69... Rf6+ {[%clk 0:00:23.9]} 70. Kg4 {[%clk 0:01:36.3]} 70... Re6
{[%clk 0:00:24.6]} 71. Kf5 {[%clk 0:01:36.9]} 71... Re4 {[%clk 0:00:23.4]} 72.
Rc7 {[%clk 0:01:33.9]} 72... Rxd4 {[%clk 0:00:24.6]} 73. Rxc6 {[%clk 0:01:35.1]}
73... Rd3 {[%clk 0:00:25.8]} 74. Rb6 {[%clk 0:01:35.8]} 74... Rxa3 {[%clk
0:00:24.3]} 75. c6 {[%clk 0:01:36.8]} 1-0

[Event "*** Titled Tuesday Blitz"]
[Site "Chess.com"]
[Date "2019.09.03"]
[Round "4"]
[White "kleinebeer98"]
[Black "NicoChasin"]
[Result "1-0"]
[WhiteElo "2664"]
[BlackElo "2490"]
[TimeControl "180+2"]
[EndTime "15:53:55 PDT"]
[Termination "kleinebeer98 won by resignation"]

1. e4 {[%clk 0:03:01.9]} 1... c5 {[%clk 0:03:00.2]} 2. Nf3 {[%clk 0:02:58.9]}
2... e6 {[%clk 0:02:58.3]} 3. d4 {[%clk 0:02:58.3]} 3... cxd4 {[%clk 0:02:58.5]}
4. Nxd4 {[%clk 0:03:00.2]} 4... Nc6 {[%clk 0:02:59.9]} 5. Nc3 {[%clk 0:03:01.6]}
5... Qc7 {[%clk 0:03:00.1]} 6. Qd3 {[%clk 0:03:02.8]} 6... a6 {[%clk 0:02:58.6]}
7. Nxc6 {[%clk 0:03:02.6]} 7... dxc6 {[%clk 0:02:58.8]} 8. Qg3 {[%clk
0:03:04.5]} 8... Qxg3 {[%clk 0:02:58.9]} 9. hxg3 {[%clk 0:03:06.4]} 9... e5
{[%clk 0:03:00.4]} 10. Bc4 {[%clk 0:02:43.4]} 10... b5 {[%clk 0:03:00.2]} 11.
Bb3 {[%clk 0:02:42.6]} 11... Nf6 {[%clk 0:03:00.7]} 12. f3 {[%clk 0:02:39.1]}
12... Nd7 {[%clk 0:02:59.9]} 13. a4 {[%clk 0:02:17.1]} 13... b4 {[%clk
0:02:56.4]} 14. Nd1 {[%clk 0:02:17.5]} 14... Nc5 {[%clk 0:02:57.4]} 15. Bc4
{[%clk 0:02:18.7]} 15... Be6 {[%clk 0:02:58.1]} 16. Ne3 {[%clk 0:02:19.4]} 16...
b3 {[%clk 0:02:57.1]} 17. Bxe6 {[%clk 0:02:14]} 17... Nxe6 {[%clk 0:02:56.3]}
18. c3 {[%clk 0:02:10.9]} 18... Nc5 {[%clk 0:02:52]} 19. Ke2 {[%clk 0:02:01.8]}
19... O-O-O {[%clk 0:02:52.1]} 20. Nc4 {[%clk 0:02:00.2]} 20... f6 {[%clk
0:02:49.6]} 21. Be3 {[%clk 0:02:00.2]} 21... Ne6 {[%clk 0:02:44.2]} 22. Na5
{[%clk 0:01:58.1]} 22... Bc5 {[%clk 0:02:41.5]} 23. Nxb3 {[%clk 0:01:49.1]}
23... Bxe3 {[%clk 0:02:41.2]} 24. Kxe3 {[%clk 0:01:51]} 24... Kc7 {[%clk
0:02:43.1]} 25. Na5 {[%clk 0:01:41.4]} 25... Nc5 {[%clk 0:02:40.8]} 26. b4
{[%clk 0:01:37.2]} 26... Nd3 {[%clk 0:02:33]} 27. Ra2 {[%clk 0:01:04.9]} 27...
Rd7 {[%clk 0:02:22.1]} 28. Rd2 {[%clk 0:01:01.3]} 28... Rhd8 {[%clk 0:02:22.3]}
29. Rhd1 {[%clk 0:00:57]} 29... Nb2 {[%clk 0:02:22.9]} 30. Rxd7+ {[%clk
0:00:57.7]} 30... Rxd7 {[%clk 0:02:23.6]} 31. Rxd7+ {[%clk 0:00:59.6]} 31...
Kxd7 {[%clk 0:02:24.6]} 32. Kd2 {[%clk 0:00:59.2]} 32... Nxa4 {[%clk 0:02:25.5]}
33. Kc2 {[%clk 0:00:51.4]} 33... Nb6 {[%clk 0:02:16.7]} 34. Kd3 {[%clk
0:00:40.4]} 34... Kc7 {[%clk 0:02:15.8]} 35. Nb3 {[%clk 0:00:38.7]} 35... Nd7
{[%clk 0:02:16.2]} 36. Kc4 {[%clk 0:00:36.5]} 36... Nb6+ {[%clk 0:02:15.4]} 37.
Kd3 {[%clk 0:00:36.1]} 37... Na4 {[%clk 0:02:16.1]} 38. Nd2 {[%clk 0:00:31.3]}
38... c5 {[%clk 0:02:15.4]} 39. Kc4 {[%clk 0:00:27.3]} 39... Kc6 {[%clk
0:02:13.5]} 40. bxc5 {[%clk 0:00:23.1]} 40... Nxc5 {[%clk 0:02:14.2]} 41. Nf1
{[%clk 0:00:20.9]} 41... a5 {[%clk 0:02:11.6]} 42. Ne3 {[%clk 0:00:22.1]} 42...
Nd7 {[%clk 0:02:12.4]} 43. Nf5 {[%clk 0:00:21.2]} 43... Nb6+ {[%clk 0:02:05.4]}
44. Kb3 {[%clk 0:00:22.2]} 44... g6 {[%clk 0:02:06]} 45. Ne3 {[%clk 0:00:21.6]}
45... Kc5 {[%clk 0:02:04.9]} 46. Ng4 {[%clk 0:00:22.1]} 46... Nd7 {[%clk
0:01:56.5]} 47. Ne3 {[%clk 0:00:22.4]} 47... h5 {[%clk 0:01:50.5]} 48. Nd5
{[%clk 0:00:21.5]} 48... f5 {[%clk 0:01:51.3]} 49. Ka4 {[%clk 0:00:22]} 49...
Nb6+ {[%clk 0:01:48.2]} 50. Kxa5 {[%clk 0:00:21.5]} 50... Nxd5 {[%clk
0:01:48.6]} 51. exd5 {[%clk 0:00:23.4]} 51... Kxd5 {[%clk 0:01:49.6]} 52. Kb5
{[%clk 0:00:24.2]} 52... e4 {[%clk 0:01:49.7]} 53. c4+ {[%clk 0:00:22.8]} 53...
Kd4 {[%clk 0:01:49.3]} 54. fxe4 {[%clk 0:00:23.8]} 54... fxe4 {[%clk 0:01:50.4]}
55. c5 {[%clk 0:00:25.7]} 55... e3 {[%clk 0:01:51.2]} 56. c6 {[%clk 0:00:27.2]}
56... e2 {[%clk 0:01:52.1]} 57. c7 {[%clk 0:00:29.1]} 57... e1=Q {[%clk
0:01:52.9]} 58. c8=Q {[%clk 0:00:31]} 58... Qb1+ {[%clk 0:01:40.6]} 59. Ka4
{[%clk 0:00:27.8]} 59... Qa2+ {[%clk 0:01:26.7]} 60. Kb4 {[%clk 0:00:28]} 60...
Qd2+ {[%clk 0:01:25.6]} 61. Ka4 {[%clk 0:00:28.3]} 61... Qd1+ {[%clk 0:01:26]}
62. Kb4 {[%clk 0:00:27.7]} 62... Qe1+ {[%clk 0:01:26.8]} 63. Ka4 {[%clk
0:00:28.2]} 63... Qd1+ {[%clk 0:01:25]} 64. Kb4 {[%clk 0:00:29]} 64... Qd2+
{[%clk 0:01:25.5]} 65. Ka4 {[%clk 0:00:27.9]} 65... Qxg2 {[%clk 0:01:20.1]} 66.
Qd7+ {[%clk 0:00:23.2]} 66... Ke5 {[%clk 0:01:15.9]} 67. Qg7+ {[%clk 0:00:19.9]}
67... Kf5 {[%clk 0:01:15.7]} 68. Qf7+ {[%clk 0:00:21.2]} 68... Kg4 {[%clk
0:01:11.6]} 69. Qf4+ {[%clk 0:00:21.9]} 1-0